fUST/lending_fUST_20250827
["ID","MTS","AMOUNT","RATE_DAILY","PERIOD"]
[381532939,1756265452766,-500.0,0.00026979,2]
[381532940,1756265452776,-360.0,0.00026985,2]
[381532941,1756265452785,-212.42283459,0.00027,2]
[381532942,1756265452795,-200.0,0.00027,14]
[381532943,1756265452804,-169.0,0.00027,7]
[381532944,1756265452813,-164.0,0.00027,7]
[381532945,1756265452822,-12707.75045307,0.00027004,2]
[381532946,1756265452832,-160.0,0.00027014,2]
[381532947,1756265452841,-160.0,0.00027015,4]
[381532948,1756265452850,-835.82975421,0.00027068,2]
[381532949,1756265452859,-1586.16377958,0.00027068,2]
[381532950,1756265452869,-661.64318891,0.00027068,2]
[381532951,1756265452878,-301.05750653,0.00027068,2]
[381532952,1756265452887,-350.0,0.00027068,2]
[381532953,1756265452896,-174.15114509,0.00027077,2]
[381532954,1756265452905,-1764.0,0.00027094,3]
[381532955,1756265452915,-1764.0,0.00027094,3]
[381532956,1756265452926,-1764.0,0.00027094,3]
[381532957,1756265452936,-1764.0,0.00027094,3]
[381532958,1756265452946,-1808.79011503,0.00027094,3]
[381532959,1756265452955,-326.0,0.00027094,3]
[381532960,1756265452964,-326.0,0.00027094,3]
[381532961,1756265452974,-326.0,0.00027094,3]
[381532962,1756265452983,-326.0,0.00027094,3]
[381532963,1756265452993,-326.0,0.00027094,3]
[381532964,1756265453002,-326.0,0.00027094,3]
[381532965,1756265453011,-403.65670726,0.00027094,3]
[381532966,1756265453021,-160.0,0.00027103,2]
[381532967,1756265453031,-864.0,0.00027118,2]
[381532968,1756265453040,-420.0,0.00027147,2]
[381532969,1756265453050,-420.0,0.00027147,2]
[381532970,1756265453059,-420.0,0.00027147,2]
[381532971,1756265453069,-420.0,0.00027147,2]
[381532972,1756265453078,-420.0,0.00027147,2]
[381532973,1756265453088,-1500.0,0.00027168,2]
[381532974,1756265453097,-1008.57563063,0.00027168,2]
[381532975,1756265453106,-1680.0,0.00027188,2]
[381532976,1756265453115,-647.0,0.000272,2]
[381532977,1756265453125,-1933.21894015,0.00027212,2]
[381532978,1756265453134,-160.0,0.0002722,2]
[381532979,1756265453143,-160.0,0.0002722,2]
[381532980,1756265453152,-845.298898,0.0002722,2]
[381532981,1756265453162,-5888.0,0.00027243,2]
[381532982,1756265453171,-500.0,0.00027253,2]
[381532983,1756265453180,-1680.0,0.00027269,2]
[381532984,1756265453189,-301.297764,0.00027278,2]
[381532985,1756265453199,-3443.81690155,0.00027283,2]
[381532986,1756265453208,-162.06972335,0.00027299,5]
[381532987,1756265453218,-2500.0,0.00027364,2]
[381532988,1756265453228,-1013.55674702,0.00027364,2]
[381532989,1756265453238,-1500.0,0.00027364,2]
[381532990,1756265453248,-864.0,0.00027392,2]
[381532991,1756265453258,-1674.3921212,0.00027399,2]
[381532992,1756265453268,-5722.6,0.000274,7]
[381532993,1756265453278,-1000.0,0.000274,2]
[381532994,1756265453287,-1000.0,0.000274,2]
[381532995,1756265453297,-510.45820748,0.00027464,5]
[381532996,1756265453307,-2500.0,0.00027464,5]
[381532997,1756265453316,-18090.47898553,0.000275,2]
[381532998,1756265453326,-876.36550444,0.00027516,5]
[381532999,1756265453335,-2000.0,0.00027516,2]
[381533000,1756265453345,-1482.84737453,0.00027516,5]
[381533001,1756265453355,-2000.0,0.00027516,5]
[381533002,1756265453365,-1006.92283959,0.00027516,5]
[381533003,1756265453374,-992.721,0.0002752,2]
[381533004,1756265453384,-638.0,0.0002752,2]
[381533005,1756265453393,-2157.0,0.0002752,2]
[381533006,1756265453403,-430.154,0.0002752,2]
[381533007,1756265453412,-416.503,0.0002752,2]
[381533008,1756265453422,-716.598295,0.00027523,2]
[381533009,1756265453431,-500.0,0.00027527,2]
[381533010,1756265453441,-460.0,0.00027533,2]
[381533011,1756265453450,-500.0,0.00027611,10]
[381533012,1756265453459,-450.0,0.00027616,5]
[381533013,1756265453468,-160.0,0.00027625,5]
[381533014,1756265453477,-864.0,0.00027666,2]
[381533015,1756265453495,-164.0,0.00027671,14]
[381533016,1756265453515,-7144.89746668,0.00027674,2]
[381533017,1756265453532,-2654.48965007,0.00027676,2]
[381533018,1756265453552,-3543.94072326,0.00027678,2]
[381533019,1756265453571,-157.94129586,0.00027678,2]
[381533020,1756265453589,-299.19552829,0.00027716,5]
[381533021,1756265453608,-160.0,0.00027721,2]
[381533022,1756265453626,-373.6073821,0.00027723,2]
[381533023,1756265453640,-510.60421212,0.00027801,2]
[381533024,1756265453656,-217.18350301,0.00027823,2]
[381533025,1756265453676,-160.0,0.00027823,2]
[381533026,1756265453692,-232.53539143,0.00027823,2]
[381533027,1756265453704,-216.09257821,0.00027823,2]
[381533028,1756265453723,-289.974,0.00027833,2]
[381533029,1756265453737,-150.185,0.00027833,2]
[381533030,1756265453755,-150.637,0.00027833,2]
[381533031,1756265453767,-195.869,0.00027833,2]
[381533032,1756265453783,-220.532,0.00027833,2]
[381533033,1756265453798,-301.297764,0.00027867,2]
[381533034,1756265453813,-7137.5,0.000279,7]
[381533035,1756265453827,-82245.77,0.000279,7]
[381533036,1756265453841,-3000.0,0.00027912,5]
[381533037,1756265453855,-864.0,0.0002794,2]
[381533038,1756265453869,-98500.0,0.00028,2]
[381533039,1756265453884,-13617.87,0.00028,2]
[381533040,1756265453898,-417.15472785,0.00028,10]
[381533041,1756265453913,-3000.0,0.00028012,5]
[381533042,1756265453927,-217.15233878,0.00028013,2]
[381533043,1756265453941,-1306.0,0.00028061,2]
[381533044,1756265453956,-2500.0,0.00028064,2]
[381533045,1756265453971,-2500.0,0.00028064,5]
[381533046,1756265453986,-560.0,0.00028081,2]
[381533047,1756265454001,-162.06972334,0.00028143,5]
[381533048,1756265454015,-550.0,0.00028164,5]
[381533049,1756265454033,-864.0,0.00028214,2]
[381533050,1756265454047,-160.0,0.00028235,6]
[381533051,1756265454060,-204.252474,0.000284,2]
[381533052,1756265454075,-301.297764,0.00028456,2]
[381533053,1756265454089,-3500.0,0.0002846,5]
[381533054,1756265454103,-1000.0,0.0002848,7]
[381533055,1756265454117,-864.0,0.00028488,2]
[381533056,1756265454131,-250.0,0.00028492,2]
[381533057,1756265454146,-56020.69,0.000285,4]
[381533058,1756265454161,-2426.94751175,0.00028533,10]
[381533059,1756265454176,-3500.0,0.0002856,5]
[381533060,1756265454191,-3000.0,0.00028612,2]
[381533061,1756265454205,-3000.0,0.00028612,5]
[381533062,1756265454218,-660.0,0.00028629,2]
[381533063,1756265454233,-5722.6,0.000287,7]
[381533064,1756265454248,-484.46087754,0.00028712,5]
[381533065,1756265454263,-864.0,0.00028762,2]
[381533066,1756265454277,-169.0,0.00028767,14]
[381533067,1756265454292,-164.0,0.00028767,14]
[381533068,1756265454307,-160.0,0.00028845,7]
[381533069,1756265454321,-161.1,0.00029,15]
[381533070,1756265454336,-160.0,0.00029,10]
[381533071,1756265454349,-160.0,0.00029,10]
[381533072,1756265454365,-217.23771399,0.00029,10]
[381533073,1756265454379,-4000.0,0.00029008,5]
[381533074,1756265454393,-153.36,0.00029033,15]
[381533075,1756265454406,-864.0,0.00029036,2]
[381533076,1756265454421,-153.8,0.00029038,15]
[381533077,1756265454436,-151.47,0.00029041,15]
[381533078,1756265454450,-152.92,0.0002905,15]
[381533079,1756265454464,-3842.17,0.00029082,2]
[381533080,1756265454479,-161.1,0.000291,15]
[381533081,1756265454494,-4000.0,0.00029108,5]
[381533082,1756265454508,-153.8,0.00029138,15]
[381533083,1756265454523,-151.47,0.00029141,15]
[381533084,1756265454540,-152.92,0.0002915,15]
[381533085,1756265454554,-3500.0,0.0002916,2]
[381533086,1756265454569,-3564.20705671,0.0002916,5]
[381533087,1756265454584,-760.0,0.00029177,2]
[381533088,1756265454598,-161.1,0.000292,15]
[381533089,1756265454613,-153.8,0.00029238,15]
[381533090,1756265454629,-151.48,0.00029241,15]
[381533091,1756265454643,-152.92,0.0002925,15]
[381533092,1756265454657,-161.1,0.000293,15]
[381533093,1756265454672,-7137.5,0.000293,7]
[381533094,1756265454686,-82245.77,0.000293,7]
[381533095,1756265454699,-1000.0,0.00029302,7]
[381533096,1756265454714,-864.0,0.0002931,2]
[381533097,1756265454729,-153.83,0.00029338,15]
[381533098,1756265454744,-5000.0,0.00029342,2]
[381533099,1756265454758,-152.92,0.0002935,15]
[381533100,1756265454771,-225.18697532,0.00029382,2]
[381533101,1756265454786,-161.1,0.000294,15]
[381533102,1756265454800,-587.0,0.00029407,2]
[381533103,1756265454815,-587.0,0.00029407,2]
[381533104,1756265454829,-587.0,0.00029407,2]
[381533105,1756265454838,-425.0,0.00029407,2]
[381533106,1756265454848,-513.0,0.00029407,2]
[381533107,1756265454858,-152.92,0.0002945,15]
[381533108,1756265454868,-2351.0,0.00029451,2]
[381533109,1756265454878,-160.0,0.00029454,8]
[381533110,1756265454887,-1933.21894015,0.00029464,2]
[381533111,1756265454896,-161.1,0.000295,15]
[381533112,1756265454906,-13617.87,0.000295,2]
[381533113,1756265454915,-399.65144779,0.00029501,2]
[381533114,1756265454926,-152.92,0.0002955,15]
[381533115,1756265454935,-4500.0,0.00029556,5]
[381533116,1756265455220,-864.0,0.00029584,2]
[381533117,1756265455242,-539.629307,0.00029589,120]
[381533118,1756265455254,-161.1,0.000296,15]
[381533119,1756265455264,-6000.0,0.00029648,2]
[381533120,1756265455273,-152.92,0.0002965,15]
[381533121,1756265455282,-270.21154911,0.00029656,5]
[381533122,1756265455292,-2351.0,0.00029674,2]
[381533123,1756265455301,-153.0,0.00029693,2]
[381533124,1756265455311,-153.0,0.00029693,2]
[381533125,1756265455320,-153.0,0.00029693,2]
[381533126,1756265455329,-153.0,0.00029693,2]
[381533127,1756265455338,-153.0,0.00029693,2]
[381533128,1756265455348,-153.0,0.00029693,2]
[381533129,1756265455357,-161.1,0.000297,15]
[381533130,1756265455368,-4000.0,0.00029708,2]
[381533131,1756265455377,-860.0,0.00029725,2]
[381533132,1756265455387,-152.92,0.0002975,15]
[381533133,1756265455396,-161.1,0.000298,15]
[381533134,1756265455405,-4172.81541695,0.0002982,2]
[381533135,1756265455415,-152.92,0.0002985,15]
[381533136,1756265455425,-864.0,0.00029858,2]
[381533137,1756265455434,-161.1,0.000299,15]
[381533138,1756265455444,-2002.63518008,0.000299,2]
[381533139,1756265455453,-153.0,0.000299,2]
[381533140,1756265455463,-153.0,0.000299,2]
[381533141,1756265455472,-152.92,0.0002995,15]
[381533142,1756265455481,-301.297764,0.00029977,6]
[381533143,1756265455491,-7000.0,0.00029982,2]
[381533144,1756265455501,-199955.4534437,0.00029998,120]
[381533145,1756265455511,-200.0,0.0003,120]
[381533146,1756265455520,-4000.0,0.0003,10]
[381533147,1756265455529,-840.0,0.0003,10]
[381533148,1756265455542,-5722.6,0.0003,7]
[381533149,1756265455551,-160.0,0.0003,10]
[381533150,1756265455561,-232.59867797,0.0003,10]
[381533151,1756265455572,-624.90762973,0.0003,10]
[381533152,1756265455581,-160.0,0.0003,10]
[381533153,1756265455590,-216.14835892,0.0003,10]
[381533154,1756265455599,-2392.84664262,0.0003,3]
[381533155,1756265455609,-212.11506658,0.0003,120]
[381533156,1756265455619,-758.92510499,0.0003,120]
[381533157,1756265455628,-6104.97417833,0.0003,30]
[381533158,1756265455637,-253.68533859,0.0003,120]
[381533159,1756265455647,-633.48701771,0.0003,120]
[381533160,1756265455656,-375.76980098,0.0003,120]
[381533161,1756265455665,-417.30639954,0.0003,30]
[381533162,1756265455675,-160.0,0.0003,10]
[381533163,1756265455684,-529.56067766,0.0003,10]
[381533164,1756265455693,-417.15472785,0.0003,10]
[381533165,1756265455703,-4000.0,0.0003,4]
[381533166,1756265455712,-160.0,0.0003,10]
[381533167,1756265455722,-160.0,0.0003,30]
[381533168,1756265455732,-217.23771399,0.0003,10]
[381533169,1756265455741,-160.0,0.0003,10]
[381533170,1756265455751,-217.23771399,0.0003,30]
[381533171,1756265455760,-160.0,0.0003,30]
[381533172,1756265455770,-161.1,0.0003,15]
[381533173,1756265455779,-152.92,0.0003005,15]
[381533174,1756265455789,-160.0,0.00030064,9]
[381533175,1756265455800,-161.15489244,0.000301,15]
[381533176,1756265455809,-1294.97853164,0.00030104,5]
[381533177,1756265455819,-1000.0,0.00030124,7]
[381533178,1756265455829,-284.30044916,0.0003013,2]
[381533179,1756265455839,-864.0,0.00030132,2]
[381533180,1756265455849,-1000.0,0.00030136,15]
[381533181,1756265455858,-38251.8561977,0.00030137,2]
[381533182,1756265455867,-152.92,0.0003015,15]
[381533183,1756265455877,-979.01213485,0.000302,2]
[381533184,1756265455886,-4000.0,0.00030241,2]
[381533185,1756265455895,-152.92,0.0003025,15]
[381533186,1756265455904,-1241.84246405,0.00030256,2]
[381533187,1756265455914,-2426.94751175,0.00030259,13]
[381533188,1756265455923,-960.0,0.00030273,2]
[381533189,1756265455932,-152.92,0.0003035,15]
[381533190,1756265455942,-3972.237465,0.00030397,2]
[381533191,1756265455951,-864.0,0.00030405,2]
[381533192,1756265455960,-152.92,0.0003045,15]
[381533193,1756265455969,-800.0,0.00030476,2]
[381533194,1756265455978,-1000.0,0.00030482,3]
[381533195,1756265455987,-200.0,0.00030484,120]
[381533196,1756265455997,-800.0,0.00030505,2]
[381533197,1756265456005,-974.0,0.0003052,2]
[381533198,1756265456015,-638.0,0.0003052,2]
[381533199,1756265456024,-2157.0,0.0003052,2]
[381533200,1756265456034,-409.0,0.0003052,2]
[381533201,1756265456043,-409.0,0.0003052,2]
[381533202,1756265456052,-152.92,0.0003055,15]
[381533203,1756265456062,-7137.5,0.000306,7]
[381533204,1756265456071,-82245.77,0.000306,7]
[381533205,1756265456080,-152.92,0.0003065,15]
[381533206,1756265456089,-800.0,0.00030664,2]
[381533207,1756265456099,-160.0,0.00030674,10]
[381533208,1756265456109,-864.0,0.00030679,2]
[381533209,1756265456119,-152.92,0.0003075,15]
[381533210,1756265456129,-233.51889341,0.00030751,2]
[381533211,1756265456139,-161.88364495,0.00030819,10]
[381533212,1756265456148,-182.3659805,0.00030819,10]
[381533213,1756265456158,-188.75393839,0.00030819,10]
[381533214,1756265456167,-1060.0,0.00030821,2]
[381533215,1756265456176,-150.0,0.00030833,2]
[381533216,1756265456188,-150.0,0.00030833,2]
[381533217,1756265456197,-150.0,0.00030833,2]
[381533218,1756265456207,-150.0,0.00030833,2]
[381533219,1756265456216,-152.92,0.0003085,15]
[381533220,1756265456226,-5000.0,0.00030867,3]
[381533221,1756265456235,-1000.0,0.00030946,7]
[381533222,1756265456245,-716.598295,0.00030947,2]
[381533223,1756265456254,-152.92,0.0003095,15]
[381533224,1756265456263,-864.0,0.00030953,2]
[381533225,1756265456272,-302.78678267,0.0003099,2]
[381533226,1756265456282,-154.0,0.00031,120]
[381533227,1756265456291,-216.14835892,0.00031,3]
[381533228,1756265456300,-160.0,0.00031,3]
[381533229,1756265456310,-529.56067766,0.00031,3]
[381533230,1756265456319,-417.15472785,0.00031,3]
[381533231,1756265456329,-160.0,0.00031,120]
[381533232,1756265456338,-160.0,0.00031,3]
[381533233,1756265456347,-217.23771399,0.00031,120]
[381533234,1756265456357,-217.23771399,0.00031,3]
[381533235,1756265456366,-160.0,0.00031,120]
[381533236,1756265456375,-152.92,0.0003105,15]
[381533237,1756265456384,-1000.0,0.00031095,15]
[381533238,1756265456393,-13617.87,0.000311,2]
[381533239,1756265456402,-152.92,0.0003115,15]
[381533240,1756265456411,-200.0,0.00031163,120]
[381533241,1756265456421,-864.0,0.00031227,2]
[381533242,1756265456430,-152.92,0.0003125,15]
[381533243,1756265456439,-160.0,0.00031284,11]
[381533244,1756265456449,-161.51516944,0.00031284,5]
[381533245,1756265456458,-5722.6,0.000313,7]
[381533246,1756265456467,-152.92,0.0003135,15]
[381533247,1756265456477,-1160.0,0.00031369,2]
[381533248,1756265456486,-152.92,0.0003145,15]
[381533249,1756265456496,-865.7184639,0.00031501,2]
[381533250,1756265456505,-886.3259817,0.00031505,2]
[381533251,1756265456515,-152.92,0.0003155,15]
[381533252,1756265456524,-180.41693337,0.00031647,7]
[381533253,1756265456537,-153.15489324,0.0003165,15]
[381533254,1756265456546,-159.0,0.000317,49]
[381533255,1756265456555,-159.0,0.000317,49]
[381533256,1756265456564,-161.05633222,0.00031709,2]
[381533257,1756265456575,-1933.21894015,0.00031715,2]
[381533258,1756265456584,-42530.0057234,0.0003176,7]
[381533259,1756265456593,-158.14,0.00031763,60]
[381533260,1756265456603,-1000.0,0.00031768,7]
[381533261,1756265456614,-151.0,0.00031771,60]
[381533262,1756265456624,-187.54374853,0.00031772,10]
[381533263,1756265456633,-99977.78441024,0.00031777,20]
[381533264,1756265457010,-15122.61478155,0.00031777,20]
[381533265,1756265457020,-91116.07373798,0.00031777,2]
[381533266,1756265457030,-300.0,0.00031777,2]
[381533267,1756265457039,-3875.92425408,0.00031777,2]
[381533268,1756265457048,-808.69065737,0.00031777,2]
[381533269,1756265457058,-254.47108566,0.00031777,2]
[381533270,1756265457067,-296.50649092,0.00031777,2]
[381533271,1756265457077,-5370.27518676,0.00031777,8]
[381533272,1756265457086,-326.59973027,0.00031777,2]
[381533273,1756265457095,-291.48246641,0.00031777,2]
[381533274,1756265457104,-51663.48594673,0.00031777,2]
[381533275,1756265457113,-636.43979424,0.00031777,2]
[381533276,1756265457122,-1359.76198746,0.00031777,2]
[381533277,1756265457132,-1133.64430163,0.00031777,7]
[381533278,1756265458517,-135.58223489,0.0002506,2]
[381533279,1756265459558,5000.0,0.00025,2]
[381533280,1756265475088,370000.0,0.00025,2]
[381533281,1756265478785,208.64101696,0.00024959,2]
[381533282,1756265490019,193.91394028,0.0002496,2]
[381533283,1756265490875,711.05699599,0.0002496,2]
[381533284,1756265520112,5000.0,0.00025,2]
[381533285,1756265522031,267.481975,0.00024359,2]
[381533286,1756265536667,430.61988225,0.00025,2]
[381533287,1756265538076,4259.7428196,0.00024373,2]
[381533288,1756265589082,1285.26974208,0.00024959,2]
[381533289,1756265609551,1949.09372215,0.000199,2]
[381533290,1756265609592,1949.09372213,0.00021627,2]
[381533291,1756265609896,1949.09372213,0.00023353,2]
[381533292,1756265633589,-223.22586898,0.00025042,10]
[381533293,1756265636042,-158.63386675,0.00025042,10]
[381533294,1756265637552,160892.75822548,0.00024989,2]
[381533295,1756265638229,-251.02283608,0.00024989,2]
[381533296,1756265639790,-204.57689282,0.00024989,2]
[381533297,1756265641976,-156.96,0.00024055,2]
[381533298,1756265644117,-500.90099239,0.00024055,2]
[381533299,1756265654685,-160.75679804,0.00024055,2]
[381533300,1756265656978,-215.47372884,0.00024055,2]
[381533301,1756265659658,-224.42901095,0.00024055,2]
[381533302,1756265661277,-190.644576,0.00024055,2]
[381533303,1756265663413,-336.00123972,0.00024055,2]
[381533304,1756265665582,-575.52314793,0.00024055,2]
[381533305,1756265666192,853.48,0.00024979,3]
[381533306,1756265668486,388.28,0.00024979,10]
[381533307,1756265669359,-284.54226434,0.00024001,2]
[381533308,1756265673207,-56.98090676,0.00024001,2]
[381533309,1756265673228,-121.3312617,0.00024001,2]
[381533310,1756265676841,426.74,0.00024979,3]
[381533311,1756265677584,-160.0,0.00024001,2]
[381533312,1756265679849,-331.52196673,0.00024001,2]
[381533313,1756265681572,434.35,0.00024979,10]
[381533314,1756265683732,-186.66788448,0.00024001,2]
[381533315,1756265685338,-221.16690188,0.00024001,2]
[381533316,1756265686927,-199.0,0.00024001,2]
[381533317,1756265687526,213.37,0.00024979,3]
[381533319,1756265689129,-215.39681362,0.00024001,2]
[381533320,1756265691010,-262.38630611,0.00024001,2]
[381533321,1756265695435,361.96,0.00024979,10]
[381533322,1756265695693,-300.0,0.00024001,2]
[381533323,1756265697782,-194.60414539,0.00024001,2]
[381533324,1756265698237,640.11,0.00024979,3]
[381533325,1756265700509,-199.0,0.00024001,2]
[381533326,1756265702315,-217.5503815,0.00024001,2]
[381533327,1756265705727,-188.0,0.00024001,2]
[381533328,1756265708763,301.63,0.00024978,10]
[381533329,1756265710091,-199.0,0.00024001,2]
[381533330,1756265711697,-197.37240435,0.00024001,2]
[381533331,1756265713925,-351.17435988,0.00024001,2]
[381533332,1756265716646,-193.41017951,0.00024001,2]
[381533333,1756265719393,-178.02437,0.00024001,2]
[381533334,1756265720999,-171.58,0.00024001,2]
[381533335,1756265726137,-207.16725051,0.00024001,2]
[381533336,1756265727816,-251.63401106,0.00024001,2]
[381533337,1756265730204,-198.04398078,0.00024001,2]
[381533338,1756265730226,-139.42956265,0.00024052,2]
[381533339,1756265732053,-160.57043735,0.00024052,2]
[381533340,1756265732078,-131.96999665,0.00024052,2]
[381533341,1756265734267,251.36,0.00024978,10]
[381533342,1756265735739,-320.97154924,0.00024052,2]
[381533343,1756265736990,-277.17011412,0.00024052,2]
[381533344,1756265739300,-160.11626619,0.00024052,2]
[381533345,1756265742293,-152.0,0.00024052,2]
[381533346,1756265742333,21128.72,0.00025,7]
[381533347,1756265743907,-157.7720738,0.00024052,2]
[381533348,1756265743928,-69.76073019,0.00024053,2]
[381533349,1756265748455,-230.23926981,0.00024053,2]
[381533350,1756265748478,-26.67796286,0.00024053,2]
[381533351,1756265749707,-228.73021816,0.00024053,2]
[381533352,1756265756539,-44.59181898,0.00024053,2]
[381533353,1756265756561,-300.0,0.00024053,2]
[381533354,1756265756581,-48.89228685,0.00024053,2]
[381533355,1756265758807,-201.32201549,0.00024053,2]
[381533356,1756265763509,-49.78569766,0.00024053,2]
[381533357,1756265763532,-183.85479347,0.00024053,2]
[381533358,1756265766853,-116.14520653,0.00024053,2]
[381533359,1756265766875,-99.58881402,0.00024054,2]
[381533360,1756265769895,-170.91036195,0.00024054,2]
[381533361,1756265772177,-174.34571015,0.00024054,2]
[381533362,1756265774323,-55.15511388,0.00024054,2]
[381533363,1756265774343,-114.86581599,0.00024054,2]
[381533364,1756265777088,-304.45143625,0.00024054,2]
[381533365,1756265780506,-80.68274776,0.00024054,2]
[381533366,1756265780528,-132.96435121,0.00024054,2]
[381533367,1756265783222,-367.03564879,0.00024054,2]
[381533368,1756265783243,-96.26161824,0.00024054,2]
[381533369,1756265785066,158.0,0.00024,3]
[381533370,1756265789296,-290.85965409,0.00024054,2]
[381533371,1756265790455,1754.18380828,0.000199,2]
[381533372,1756265792188,-206.31869726,0.00021627,2]
[381533373,1756265795937,-255.16547011,0.00021627,2]
[381533374,1756265797251,-238.21785205,0.00021627,2]
[381533375,1756265800858,-321.94721906,0.00021627,2]
[381533376,1756265804509,-244.00134479,0.00021627,2]
[381533377,1756265806165,160.0,0.0002,3]
[381533378,1756265806201,158.0,0.00024,3]
[381533379,1756265810257,-301.04283536,0.00021627,2]
[381533380,1756265813355,-187.49038957,0.00021627,2]
[381533381,1756265813379,-18.98172253,0.00023353,2]
[381533382,1756265815686,-152.0,0.00023353,2]
[381533383,1756265819132,-291.13001358,0.00023353,2]
[381533384,1756265821947,-170.48230734,0.00023353,2]
[381533385,1756265821979,1001.0,0.0002,2]
[381533386,1756265823574,-171.72947977,0.00023353,2]
[381533387,1756265831408,-153.53529273,0.00023353,2]
[381533388,1756265835232,-239.32928596,0.00023353,2]
[381533389,1756265838078,-159.25216296,0.00023353,2]
[381533390,1756265840784,-179.53353421,0.00023353,2]
[381533391,1756265843578,-186.83842943,0.00023353,2]
[381533392,1756265847052,-31.37157969,0.00023353,2]
[381533393,1756265847075,-216.2942163,0.00023614,2]
[381533394,1756265847924,222.08884839,0.0002305,2]
[381533395,1756265847949,500.0,0.0002305,2]
[381533396,1756265847975,203.14920668,0.0002305,2]
[381533397,1756265875667,158.0,0.00024,3]
[381533398,1756265879441,354.4,0.00016384,2]
[381533399,1756265879715,354.4,0.00016384,2]
[381533400,1756265885039,158.0,0.00024,4]
[381533401,1756265897861,161.52044786,0.00024,4]
[381533402,1756265917495,-18.53896693,0.0002305,2]
[381533403,1756265917516,-278.01096227,0.00023614,2]
[381533404,1756265929761,150.5,0.0002493,120]
[381533405,1756265930408,181.97,0.0002492,120]
[381533406,1756265965659,1660.67945932,0.000199,2]
[381533407,1756266114284,-168.048268,0.00021627,2]
[381533408,1756266116346,-376.60686924,0.00021627,2]
[381533409,1756266118587,-219.30131598,0.00021627,2]
[381533410,1756266122361,-215.91174552,0.00021627,2]
[381533411,1756266137184,489.22,0.00022926,10]
[381533412,1756266151812,407.68,0.00022926,10]
[381533413,1756266151853,564.91046561,0.000199,2]
[381533414,1756266154388,2071.91311682,0.000199,2]
[381533415,1756266177309,339.74,0.00022926,10]
[381533416,1756266199198,5731.06,0.00023,7]
[381533417,1756266202748,283.11,0.00022785,10]
[381533418,1756266204793,552.340579,0.00013699,2]
[381533419,1756266218323,235.93,0.00022785,10]
[381533420,1756266232743,196.61,0.00022785,10]
[381533422,1756266246372,163.84,0.00022785,10]
[381533423,1756266267592,200.0,0.0002299,10]
[381533424,1756266267884,200.0,0.0002299,10]
[381533425,1756266268181,208.238992,0.0002299,10]
[381533426,1756266275392,819.21,0.0002198,10]
[381533427,1756266307433,-315.8136235,0.00020187,2]
[381533428,1756266311769,-199.0,0.00020187,2]
[381533429,1756266313866,-37.5269555,0.00020187,2]
[381533430,1756266313887,-158.34302403,0.0002141,2]
[381533431,1756266316209,-165.86420085,0.0002131,2]
[381533432,1756266317783,-63.2004695,0.0002131,2]
[381533433,1756266317812,-162.51733637,0.00021627,2]
[381533434,1756266318309,5000.0,0.00024,3]
[381533435,1756266320773,-259.55846033,0.00021673,2]
[381533436,1756266320802,-165.0307003,0.00021673,2]
[381533437,1756266323643,-180.135331,0.00021673,2]
[381533438,1756266325780,-154.8339687,0.00021673,2]
[381533439,1756266325805,-305.1660313,0.00021673,2]
[381533440,1756266326937,531.76,0.00021979,3]